fUST/lending_fUST_20240809
["ID","MTS","AMOUNT","RATE_DAILY","PERIOD"]
[334467792,1723134523837,309.18067122,0.00014247,2]
[334467796,1723134550177,-1226.21928924,0.00016309,2]
[334467797,1723134550199,-245.45777017,0.00017019,2]
[334467798,1723134550221,-137.80992975,0.00018454,2]
[334467799,1723134555156,1019.0,0.0002498,120]
[334467800,1723134555640,1019.0,0.0002497,120]
[334467801,1723134556438,1019.0,0.0002496,120]
[334467870,1723134632509,-492.40339763,0.00016347,2]
[334467871,1723134632520,-154.86821773,0.00017019,2]
[334467872,1723134632529,-422.44339055,0.00018339,2]
[334467873,1723134632542,-142.44397645,0.00018339,2]
[334467874,1723134632551,-1933.44602355,0.00018454,2]
[334467875,1723134632579,-652.4334626,0.00018454,2]
[334467876,1723134632589,-165.597616,0.00018939,2]
[334467877,1723134632599,-165.597616,0.00018945,2]
[334467878,1723134632609,-165.597616,0.0001895,2]
[334467879,1723134632618,-165.597616,0.00018956,2]
[334467880,1723134632628,-165.597616,0.00018961,2]
[334467881,1723134632638,-165.597616,0.00018967,2]
[334467882,1723134632648,-165.597616,0.00018973,2]
[334467883,1723134632658,-165.597616,0.00018978,2]
[334467884,1723134632668,-165.597616,0.00018984,2]
[334467885,1723134632678,-165.597616,0.00018989,2]
[334467886,1723134632688,-165.597616,0.00018995,2]
[334467887,1723134632698,-35.9927544,0.00019,2]
[334467925,1723134638420,-129.6048616,0.00019,2]
[334467927,1723134638430,-165.597616,0.00019006,2]
[334467929,1723134638439,-49.93546644,0.00019011,2]
[334467931,1723134638450,-115.66214956,0.00019011,2]
[334467932,1723134638459,-165.597616,0.00019017,2]
[334467934,1723134638468,-165.597616,0.00019023,2]
[334467936,1723134638478,-165.597616,0.00019028,2]
[334467938,1723134638488,-165.597616,0.00019034,2]
[334467939,1723134638497,-269.54909522,0.00019153,7]
[334467940,1723134638506,-269.54909522,0.00019155,7]
[334467941,1723134638516,-9170.03988326,0.00019167,2]
[334467942,1723134638526,-2848.36326452,0.00019177,2]
[334467943,1723134638535,-163.860217,0.00019178,2]
[334467944,1723134638545,-6526.8304117,0.00019692,2]
[334467945,1723134638554,-1129.98,0.00019984,2]
[334467946,1723134638563,-154.77557542,0.00019999,2]
[334467947,1723134638574,-344.50577488,0.0002,2]
[334467948,1723134638584,-250.3081391,0.00020038,2]
[334467949,1723134638593,-743.0045512,0.00020114,2]
[334467950,1723134638602,-3677.01307814,0.000209,2]
[334467951,1723134638612,-7481.67943312,0.00021,2]
[334467952,1723134638621,-232.69346153,0.00021,2]
[334467954,1723134638632,-161.68052359,0.00021353,2]
[334467955,1723134638641,-31881.0391118,0.00021454,2]
[334467956,1723134638651,-1795.39299841,0.00021609,2]
[334467957,1723134638661,-542.48310742,0.00021632,2]
[334467958,1723134638671,-694.43179127,0.00021632,2]
[334467959,1723134638680,-297.10158211,0.00021632,2]
[334467960,1723134638690,-154.9150861,0.00021632,2]
[334467961,1723134638700,-845.87870421,0.00021632,2]
[334467962,1723134638709,-952.22238647,0.00021632,2]
[334467963,1723134638719,-154.77557542,0.00021632,2]
[334467964,1723134638728,-810.33208659,0.00021632,2]
[334467965,1723134638739,-160.23427188,0.00021632,2]
[334467966,1723134638751,-154.77557542,0.00021632,2]
[334467967,1723134638761,-342.52439147,0.00021632,2]
[334467968,1723134638772,-471.04982511,0.00021632,2]
[334467969,1723134638782,-1091.69139402,0.00021632,2]
[334467970,1723134638793,-280.51515585,0.00021632,2]
[334467971,1723134638802,-494.46439567,0.00021632,2]
[334467972,1723134638812,-664.5582695,0.00021642,2]
[334467973,1723134638821,-320.35358781,0.00021642,2]
[334467974,1723134638833,-203.7689511,0.00021705,2]
[334467975,1723134638842,-176.24730842,0.00021805,2]
[334467976,1723134638851,-333.19323305,0.00022,2]
[334467977,1723134638861,-275.0,0.00022,2]
[334467978,1723134638872,-2063.38602183,0.00022,2]
[334467979,1723134638882,-171.0,0.00022,2]
[334467980,1723134638892,-275.0,0.00022192,2]
[334467981,1723134638903,-161.68052359,0.00022703,2]
[334467982,1723134638912,-329.31,0.0002299,3]
[334467983,1723134638922,-164.65,0.0002299,3]
[334467984,1723134638931,-494.0,0.0002299,3]
[334467985,1723134638941,-472.12044886,0.00023,2]
[334467986,1723134638952,-8017.3369114,0.00023,2]
[334467987,1723134638962,-275.0,0.00023014,2]
[334467988,1723134638972,-171.0,0.00023014,2]
[334467989,1723134638982,-3677.01307809,0.00023186,2]
[334467990,1723134638992,-2005.0,0.00023435,10]
[334467991,1723134639002,-4350.92455896,0.00024,30]
[334467992,1723134639011,-150.112233,0.00024,3]
[334467993,1723134639021,-318.49119154,0.00024,2]
[334467994,1723134639030,-161.68052359,0.00024053,2]
[334467995,1723134639039,-44494.9570928,0.00024077,3]
[334467996,1723134639048,-11452.08614031,0.00024088,2]
[334467997,1723134639057,-500.0,0.00024152,2]
[334467998,1723134639071,-450.44584592,0.00024152,2]
[334467999,1723134639085,-260.23326845,0.00024152,2]
[334468000,1723134639101,-500.0,0.00024152,2]
[334468001,1723134639110,-500.0,0.00024152,2]
[334468002,1723134639119,-376.64868409,0.00024152,2]
[334468003,1723134639128,-500.0,0.00024152,2]
[334468004,1723134639137,-500.0,0.00024152,2]
[334468005,1723134639146,-500.0,0.00024152,2]
[334468006,1723134639157,-500.0,0.00024152,2]
[334468007,1723134639166,-500.0,0.00024152,2]
[334468008,1723134639176,-500.0,0.00024152,2]
[334468009,1723134639186,-500.0,0.00024152,2]
[334468010,1723134639196,-500.0,0.00024152,2]
[334468011,1723134639207,-500.0,0.00024152,2]
[334468012,1723134639216,-500.0,0.00024152,2]
[334468013,1723134639226,-500.0,0.00024152,2]
[334468014,1723134639236,-500.0,0.00024152,2]
[334468015,1723134639245,-500.0,0.00024152,2]
[334468016,1723134639255,-500.0,0.00024152,2]
[334468017,1723134639264,-500.0,0.00024152,2]
[334468018,1723134639273,-500.0,0.00024152,2]
[334468019,1723134639282,-379.96176199,0.00024152,2]
[334468020,1723134639291,-500.0,0.00024152,2]
[334468021,1723134639300,-500.0,0.00024152,2]
[334468022,1723134639310,-500.0,0.00024152,2]
[334468023,1723134639319,-500.0,0.00024152,2]
[334468024,1723134639332,-500.0,0.00024152,2]
[334468025,1723134639342,-500.0,0.00024152,2]
[334468026,1723134639351,-500.0,0.00024152,2]
[334468027,1723134639360,-500.0,0.00024152,2]
[334468028,1723134639370,-500.0,0.00024152,2]
[334468029,1723134639380,-500.0,0.00024152,2]
[334468030,1723134639389,-87428.49223819,0.00024153,11]
[334468031,1723134639398,-44494.9570928,0.00024154,3]
[334468032,1723134639408,-3149.77871135,0.00024164,2]
[334468033,1723134639418,-275.0,0.00024164,2]
[334468034,1723134639428,-658.62,0.0002436,3]
[334468035,1723134639438,-329.3,0.0002436,3]
[334468036,1723134639448,-150.112233,0.000245,2]
[334468037,1723134639458,-1626.61800287,0.0002496,2]
[334468038,1723134639468,-10490.66665029,0.0002496,2]
[334468039,1723134639478,-17554.09549086,0.0002496,2]
[334468040,1723134639488,-4183.4711297,0.0002496,2]
[334468041,1723134639498,-200.0,0.00024973,2]
[334468042,1723134639508,-44494.9570928,0.0002499,3]
[334468043,1723134639517,-44494.9570928,0.0002499,3]
[334468044,1723134639527,-23201.42953338,0.00025,30]
[334468045,1723134639538,-1004.54670276,0.00025,5]
[334468046,1723134639547,-310.94172018,0.00025,2]
[334468047,1723134639557,-154.86095337,0.00025,2]
[334468048,1723134639566,-304.41216996,0.00025,2]
[334468049,1723134639581,-150.112233,0.00025,5]
[334468050,1723134639590,-1855.52515125,0.00025,2]
[334468051,1723134639600,-1027.78654758,0.00025,2]
[334468052,1723134639611,-45217.61026187,0.00025,2]
[334468053,1723134639620,-14775.32865644,0.00025,2]
[334468054,1723134639631,-3298.54011806,0.00025,2]
[334468055,1723134639640,-198.0,0.00025,2]
[334468056,1723134639650,-151.0,0.00025,7]
[334468057,1723134639660,-151.0,0.00025,7]
[334468058,1723134639669,-290.313494,0.00025,7]
[334468059,1723134639680,-151.0,0.00025,7]
[334468060,1723134639690,-290.313494,0.00025,7]
[334468061,1723134639700,-804.346549,0.00025202,7]
[334468062,1723134639710,-804.346549,0.00025202,7]
[334468063,1723134639719,-151.0,0.00025202,7]
[334468064,1723134639729,-151.0,0.00025202,7]
[334468065,1723134639739,-151.661857,0.00025202,7]
[334468066,1723134639749,-286.92016,0.00025202,7]
[334468067,1723134639759,-196.429376,0.00025202,7]
[334468068,1723134639769,-286.92016,0.00025202,7]
[334468069,1723134639779,-196.429376,0.00025202,7]
[334468070,1723134639789,-202.264789,0.00025202,7]
[334468071,1723134639798,-202.264789,0.00025202,7]
[334468072,1723134639808,-44494.9570928,0.00025202,3]
[334468073,1723134639817,-621.04771044,0.00025227,2]
[334468074,1723134639831,-5307.6909542,0.00025353,2]
[334468075,1723134639841,-163.319948,0.00025405,2]
[334468076,1723134639850,-900.0,0.00025469,3]
[334468077,1723134639861,-3677.01307809,0.00025471,2]
[334468078,1723134639873,-150.112233,0.000255,8]
[334468079,1723134639884,-2005.0,0.00025598,10]
[334468080,1723134639894,-5307.6909542,0.00025631,2]
[334468081,1723134639904,-150.0,0.00025672,2]
[334468082,1723134639915,-275.0,0.00025775,2]
[334468083,1723134639925,-150.0,0.00025898,2]
[334468084,1723134639936,-150.112233,0.000259,10]
[334468085,1723134639946,-5307.6909542,0.00025962,2]
[334468086,1723134639957,-151.0,0.00025962,7]
[334468087,1723134639967,-151.0,0.00025962,7]
[334468088,1723134639977,-290.313494,0.00025962,7]
[334468089,1723134639987,-151.0,0.00025962,7]
[334468090,1723134639998,-290.313494,0.00025962,7]
[334468091,1723134640007,-1000.0,0.00026,7]
[334468092,1723134640017,-200.0,0.00026027,2]
[334468093,1723134640027,-5307.6909542,0.00026094,2]
[334468094,1723134640040,-150.0,0.000263,2]
[334468095,1723134640051,-400.0,0.00026342,2]
[334468096,1723134640062,-150.112233,0.000264,8]
[334468097,1723134640077,-620.05238552,0.00026489,2]
[334468098,1723134640088,-7458.94652043,0.0002649,2]
[334468099,1723134640097,-1000.0,0.000265,5]
[334468100,1723134640107,-5307.6909542,0.00026506,2]
[334468101,1723134640118,-150.0,0.00026548,2]
[334468102,1723134640128,-402.58073778,0.00026569,2]
[334468103,1723134640138,-1363.91466198,0.00026583,2]
[334468104,1723134640150,-1363.91466198,0.00026583,2]
[334468105,1723134640160,-881.97401853,0.0002661,2]
[334468106,1723134640170,-881.97401853,0.0002661,2]
[334468107,1723134640179,-5307.6909542,0.00026652,2]
[334468108,1723134640189,-150.0,0.00026712,2]
[334468109,1723134640198,-160.64700877,0.00026826,2]
[334468110,1723134640208,-150.112233,0.000269,6]
[334468111,1723134640218,-5307.6909542,0.00026907,2]
[334468112,1723134640228,-287.78056215,0.00026915,2]
[334468113,1723134640239,-44494.9570928,0.0002699,3]
[334468114,1723134640248,-804.346549,0.0002699,7]
[334468115,1723134640258,-804.346549,0.0002699,7]
[334468116,1723134640267,-151.0,0.0002699,7]
[334468117,1723134640277,-151.0,0.0002699,7]
[334468118,1723134640286,-286.92016,0.0002699,7]
[334468119,1723134640296,-196.429376,0.0002699,7]
[334468120,1723134640306,-286.92016,0.0002699,7]
[334468121,1723134640316,-202.264789,0.0002699,7]
[334468122,1723134640328,-196.429376,0.0002699,7]
[334468123,1723134640337,-202.264789,0.0002699,7]
[334468124,1723134640347,-1000.0,0.00027,7]
[334468125,1723134640356,-1094.03,0.00027,10]
[334468126,1723134640365,-9264.80409805,0.00027,30]
[334468127,1723134640375,-26402.76741075,0.00027,5]
[334468128,1723134640387,-151.0,0.00027,7]
[334468129,1723134640398,-151.0,0.00027,7]
[334468130,1723134640408,-290.313494,0.00027,7]
[334468131,1723134640419,-151.0,0.00027,7]
[334468132,1723134640430,-290.313494,0.00027,7]
[334468133,1723134640441,-2000.0,0.00027085,2]
[334468134,1723134640451,-2621.18096445,0.000271,2]
[334468135,1723134640462,-153.0,0.00027123,2]
[334468136,1723134640471,-1000.0,0.00027142,2]
[334468137,1723134640483,-1000.0,0.00027142,2]
[334468138,1723134640493,-161.750239,0.00027149,7]
[334468139,1723134640503,-161.750239,0.00027149,7]
[334468140,1723134640514,-151.0,0.00027149,2]
[334468141,1723134640524,-151.0,0.00027149,7]
[334468142,1723134640535,-151.0,0.00027149,7]
[334468143,1723134640547,-151.0,0.00027149,7]
[334468144,1723134640558,-151.0,0.00027149,7]
[334468145,1723134640572,-151.0,0.00027149,7]
[334468146,1723134640582,-151.0,0.00027149,7]
[334468147,1723134640591,-151.0,0.00027149,7]
[334468148,1723134640600,-263.966586,0.00027149,7]
[334468149,1723134640610,-151.0,0.00027149,7]
[334468150,1723134640620,-1000.0,0.00027165,2]
[334468151,1723134640630,-44494.9570928,0.00027175,3]
[334468152,1723134640639,-151.0,0.00027185,7]
[334468153,1723134640649,-151.939087,0.00027185,7]
[334468154,1723134640659,-151.0,0.00027185,7]
[334468155,1723134640669,-151.0,0.00027185,7]
[334468156,1723134640679,-804.346549,0.00027185,7]
[334468157,1723134640689,-804.346549,0.00027185,7]
[334468158,1723134640699,-286.92016,0.00027185,7]
[334468159,1723134640709,-196.429376,0.00027185,7]
[334468160,1723134640718,-286.92016,0.00027185,7]
[334468161,1723134640728,-196.429376,0.00027185,7]
[334468162,1723134640738,-202.264789,0.00027185,7]
[334468163,1723134640747,-202.264789,0.00027185,7]
[334468164,1723134640757,-151.0,0.00027185,7]
[334468165,1723134640767,-151.0,0.00027185,7]
[334468166,1723134640776,-290.313494,0.00027185,7]
[334468167,1723134640785,-151.0,0.00027185,7]
[334468168,1723134640795,-290.313494,0.00027185,7]
[334468169,1723134640805,-60381.87906581,0.00027185,3]
[334468170,1723134640814,-150.112234,0.000272,5]
[334468171,1723134640826,-904.19254394,0.000272,5]
[334468172,1723134640835,-1000.0,0.00027252,2]
[334468173,1723134640845,-1000.0,0.00027265,2]
[334468174,1723134640855,-161.750239,0.00027286,7]
[334468175,1723134640864,-161.750239,0.00027286,7]
[334468176,1723134640874,-151.0,0.00027286,7]
[334468177,1723134640883,-170.502261,0.00027286,7]
[334468178,1723134640893,-151.0,0.00027286,7]
[334468179,1723134640903,-151.0,0.00027286,7]
[334468180,1723134640912,-151.0,0.00027286,7]
[334468181,1723134640922,-2005.0,0.00027289,10]
[334468182,1723134640931,-151.0,0.0002729,7]
[334468183,1723134640941,-151.0,0.0002729,7]
[334468184,1723134640951,-2000.0,0.00027297,2]
[334468185,1723134640961,-2005.0,0.00027298,10]
[334468186,1723134640972,-1000.0,0.00027298,2]
[334468187,1723134640982,-1000.0,0.00027299,2]
[334468188,1723134640993,-30859.20492339,0.000273,11]
[334468189,1723134641003,-3000.0,0.000273,2]
[334468190,1723134641013,-3000.0,0.000273,2]
[334468191,1723134641024,-117027.62052347,0.000273,2]
[334468192,1723134641034,-151.0,0.000273,7]
[334468193,1723134641044,-804.346549,0.000273,7]
[334468194,1723134641054,-804.346549,0.000273,7]
[334468195,1723134641068,-1005.013645,0.000273,2]
[334468196,1723134641080,-286.92016,0.000273,7]
[334468197,1723134641090,-196.429376,0.000273,7]
[334468198,1723134641100,-286.92016,0.000273,7]
[334468199,1723134641111,-202.264789,0.000273,7]
[334468200,1723134641121,-196.429376,0.000273,7]
[334468201,1723134641131,-202.264789,0.000273,7]
[334468202,1723134641142,-151.0,0.000273,7]
[334468203,1723134641153,-151.0,0.000273,7]
[334468204,1723134641163,-290.313494,0.000273,7]
[334468205,1723134641173,-151.0,0.000273,7]
[334468206,1723134641182,-290.313494,0.000273,7]
[334468207,1723134641192,-1000.0,0.00027309,2]
[334468208,1723134641203,-3000.0,0.0002731,2]
[334468209,1723134641214,-3000.0,0.0002731,2]
[334468210,1723134641224,-3000.0,0.0002732,2]
[334468211,1723134641233,-3000.0,0.0002732,2]
[334468212,1723134641243,-1000.0,0.00027327,2]
[334468213,1723134641254,-2866.01604706,0.00027328,2]
[334468249,1723134642343,-167.610555,0.00018732,2]
[334468252,1723134642354,-167.610555,0.00018821,2]
[334468254,1723134642364,-414.04675619,0.00021632,2]
[334468256,1723134642374,-881.97401853,0.00026604,2]
[334468258,1723134642385,-2441.67490744,0.00027328,2]
[334468260,1723134642395,-3000.0,0.0002733,2]
[334468262,1723134642406,-3000.0,0.0002733,2]
[334468264,1723134642417,-693.72411053,0.00027339,10]
[334468266,1723134642427,-3000.0,0.0002734,2]
[334468269,1723134642437,-3000.0,0.0002734,2]
[334468271,1723134642448,-3000.0,0.0002735,2]
[334468273,1723134642463,-3000.0,0.0002735,2]
[334468275,1723134642474,-153.0,0.00027356,2]
[334468277,1723134642484,-153.0,0.00027356,2]
[334468279,1723134642495,-153.0,0.00027356,2]
[334468282,1723134642505,-153.0,0.00027356,2]
[334468284,1723134642515,-153.0,0.00027356,2]
[334468286,1723134642525,-153.0,0.00027356,2]
[334468288,1723134642536,-153.0,0.00027356,2]
[334468290,1723134642547,-153.0,0.00027356,2]
[334468292,1723134642557,-153.0,0.00027356,2]
[334468294,1723134642568,-153.0,0.00027356,2]
[334468318,1723134642764,-153.0,0.00027356,2]
[334468321,1723134642775,-153.0,0.00027356,2]
[334468323,1723134642785,-153.0,0.00027356,2]
[334468325,1723134642794,-155.0,0.0002736,17]
[334468327,1723134642804,-151.0,0.0002736,7]
[334468329,1723134642814,-206.78023,0.0002736,7]
[334468331,1723134642824,-151.0,0.0002736,7]
[334468333,1723134642837,-3000.0,0.0002736,2]
[334468337,1723134642848,-3000.0,0.0002736,2]
[334468340,1723134642858,-3000.0,0.0002737,2]
[334468343,1723134642869,-3000.0,0.0002737,2]
[334468346,1723134642878,-151.0,0.0002737,7]
[334468348,1723134642888,-196.22518085,0.00027373,2]
[334468352,1723134642897,-200.0,0.00027373,2]
[334468356,1723134642906,-200.0,0.00027373,2]
[334468358,1723134642916,-3000.0,0.0002738,2]
[334468359,1723134642926,-3000.0,0.0002738,2]
[334468360,1723134642936,-275.0,0.00027386,2]
[334468362,1723134642945,-151.0,0.00027387,7]
[334468364,1723134642955,-151.0,0.00027387,2]
[334468366,1723134642965,-151.0,0.00027387,7]
[334468368,1723134642974,-189.119027,0.00027387,7]
[334468370,1723134642983,-155.05293,0.00027387,7]
[334468371,1723134642993,-161.750239,0.00027387,7]
[334468372,1723134643003,-161.750239,0.00027387,7]
[334468373,1723134643013,-151.0,0.00027387,7]
[334468374,1723134643023,-151.0,0.00027387,7]
[334468375,1723134643032,-20000.00347,0.0002739,2]
[334468377,1723134643042,-151.0,0.0002739,7]
[334468378,1723134643052,-3000.0,0.0002739,2]
[334468380,1723134643062,-3000.0,0.0002739,2]
[334468382,1723134643072,-151.0,0.0002739,7]
[334468383,1723134643096,-804.346549,0.0002739,7]
[334468385,1723134643105,-804.346549,0.0002739,7]
[334468387,1723134643115,-62.36926875,0.0002739,7]
[334468398,1723134643217,-224.55089125,0.0002739,7]
[334468400,1723134643227,-196.429376,0.0002739,7]
[334468402,1723134643236,-286.92016,0.0002739,7]
[334468404,1723134643246,-202.264789,0.0002739,7]
[334468406,1723134643256,-196.429376,0.0002739,7]
[334468408,1723134643266,-202.264789,0.0002739,7]
[334468410,1723134643277,-150.01,0.00027396,2]
[334468412,1723134643287,-2993.00758584,0.00027396,2]
[334468415,1723134643297,-2605.08504403,0.00027396,2]
[334468417,1723134643307,-305.65463372,0.00027396,2]
[334468419,1723134643316,-500.0,0.00027397,7]
[334468421,1723134643332,-500.0,0.00027397,7]
[334468423,1723134643341,-978.91,0.00027397,7]
[334468425,1723134643351,-500.0,0.00027397,7]
[334468427,1723134643360,-500.0,0.00027397,7]
[334468429,1723134643370,-500.0,0.00027397,7]
[334468431,1723134643379,-500.0,0.00027397,7]
[334468433,1723134643389,-165.949752,0.00027397,7]
[334468435,1723134643399,-500.0,0.00027397,7]
[334468437,1723134643408,-500.0,0.00027397,7]
[334468439,1723134643420,-484.64911859,0.00027397,7]
[334468441,1723134643430,-646.12,0.00027397,7]
[334468443,1723134643440,-500.0,0.00027397,7]
[334468445,1723134643450,-500.0,0.00027397,7]
[334468447,1723134643460,-500.0,0.00027397,7]
[334468449,1723134643469,-500.0,0.00027397,7]
[334468451,1723134643479,-500.0,0.00027397,7]
[334468453,1723134643489,-500.0,0.00027397,7]
[334468455,1723134643499,-500.0,0.00027397,7]
[334468457,1723134643508,-500.0,0.00027397,7]
[334468459,1723134643517,-500.0,0.00027397,7]
[334468461,1723134643527,-500.0,0.00027397,7]
[334468463,1723134643537,-561.69,0.00027397,7]
[334468465,1723134643548,-500.0,0.00027397,7]
[334468467,1723134643558,-500.0,0.00027397,7]
[334468469,1723134643568,-500.0,0.00027397,7]
[334468471,1723134643580,-500.0,0.00027397,7]
[334468473,1723134643590,-500.0,0.00027397,7]
[334468475,1723134643601,-186.98845583,0.00027397,7]
[334468477,1723134643611,-500.0,0.00027397,7]
[334468480,1723134643621,-500.0,0.00027397,7]
[334468482,1723134643631,-500.0,0.00027397,7]
[334468484,1723134643640,-500.0,0.00027397,7]
[334468486,1723134643650,-500.0,0.00027397,7]
[334468488,1723134643661,-564.47,0.00027397,7]
[334468490,1723134643672,-500.0,0.00027397,7]
[334468492,1723134643682,-500.0,0.00027397,7]
[334468494,1723134643693,-500.0,0.00027397,7]
[334468496,1723134643703,-568.80783754,0.00027397,7]
[334468498,1723134643713,-559.81704241,0.00027397,7]
[334468500,1723134643723,-500.0,0.00027397,7]
[334468503,1723134643734,-500.0,0.00027397,7]
[334468505,1723134643744,-500.0,0.00027397,7]
[334468507,1723134643753,-500.0,0.00027397,7]
[334468509,1723134643762,-500.0,0.00027397,7]
[334468511,1723134643772,-200.0,0.00027397,7]
[334468513,1723134643781,-500.0,0.00027397,7]
[334468515,1723134643791,-500.0,0.00027397,7]
[334468517,1723134643800,-500.0,0.00027397,7]
[334468519,1723134643810,-101.02026059,0.00027397,7]
[334468521,1723134643827,-398.97973941,0.00027397,7]
[334468523,1723134643837,-500.0,0.00027397,7]
[334468525,1723134643846,-500.0,0.00027397,7]
[334468528,1723134643857,-500.0,0.00027397,7]
[334468530,1723134643867,-500.0,0.00027397,7]
[334468533,1723134643878,-500.0,0.00027397,7]
[334468534,1723134643888,-500.0,0.00027397,7]
[334468536,1723134643897,-500.0,0.00027397,7]
[334468538,1723134643906,-501.30338623,0.00027397,7]
[334468539,1723134643916,-500.0,0.00027397,7]
[334468541,1723134643925,-500.0,0.00027397,7]
[334468543,1723134643936,-500.0,0.00027397,7]
[334468545,1723134643948,-500.0,0.00027397,7]
[334468547,1723134643957,-500.0,0.00027397,7]
[334468548,1723134643967,-500.0,0.00027397,7]
[334468549,1723134643976,-500.0,0.00027397,7]
[334468550,1723134643986,-500.0,0.00027397,7]
[334468552,1723134643996,-500.0,0.00027397,7]
[334468554,1723134644005,-500.0,0.00027397,7]
[334468556,1723134644015,-500.0,0.00027397,7]
[334468558,1723134644024,-500.0,0.00027397,7]
[334468560,1723134644033,-500.0,0.00027397,7]
[334468562,1723134644043,-500.0,0.00027397,7]
[334468564,1723134644054,-500.0,0.00027397,7]
[334468566,1723134644066,-611.93,0.00027397,7]
[334468567,1723134644077,-500.0,0.00027397,7]
[334468569,1723134644087,-500.0,0.00027397,7]
[334468571,1723134644097,-500.0,0.00027397,7]
[334468573,1723134644108,-500.0,0.00027397,7]
[334468575,1723134644118,-500.0,0.00027397,7]
[334468577,1723134644127,-500.0,0.00027397,7]
[334468579,1723134644139,-500.0,0.00027397,7]
[334468581,1723134644151,-500.0,0.00027397,7]
[334468582,1723134644161,-500.0,0.00027397,7]
[334468584,1723134644170,-500.0,0.00027397,7]
[334468585,1723134644179,-515.82,0.00027397,7]
[334468586,1723134644188,-500.0,0.00027397,7]
[334468587,1723134644197,-151.0,0.00027397,7]
[334468588,1723134644208,-631.16,0.00027397,7]
[334468589,1723134644217,-500.0,0.00027397,7]
[334468590,1723134644227,-500.0,0.00027397,7]
[334468591,1723134644238,-500.0,0.00027397,7]
[334468592,1723134644247,-500.0,0.00027397,7]
[334468593,1723134644257,-500.0,0.00027397,7]
[334468594,1723134644266,-255.07499971,0.00027397,7]
[334468595,1723134644276,-500.0,0.00027397,7]
[334468596,1723134644285,-614.96149429,0.00027397,7]
[334468597,1723134644295,-500.0,0.00027397,7]
[334468598,1723134644304,-500.0,0.00027397,7]
[334468599,1723134644314,-500.0,0.00027397,7]
[334468600,1723134644326,-500.0,0.00027397,7]
[334468601,1723134644336,-500.0,0.00027397,7]
[334468602,1723134644346,-500.0,0.00027397,7]
[334468603,1723134644358,-500.0,0.00027397,7]
[334468604,1723134644368,-604.11,0.00027397,7]
[334468605,1723134644377,-500.0,0.00027397,7]
[334468606,1723134644387,-500.0,0.00027397,7]
[334468607,1723134644397,-500.0,0.00027397,7]
[334468608,1723134644406,-328.13417458,0.00027397,7]
[334468609,1723134644417,-500.0,0.00027397,7]
[334468610,1723134644427,-500.0,0.00027397,7]
[334468611,1723134644436,-540.15040749,0.00027397,7]
[334468612,1723134644446,-184.80024748,0.00027397,7]
[334468613,1723134644456,-500.0,0.00027397,7]
[334468614,1723134644465,-500.0,0.00027397,7]
[334468615,1723134644475,-500.0,0.00027397,7]
[334468616,1723134644485,-500.0,0.00027397,7]
[334468617,1723134644495,-500.0,0.00027397,7]
[334468618,1723134644505,-500.0,0.00027397,7]
[334468619,1723134644514,-500.0,0.00027397,7]
[334468620,1723134644523,-500.0,0.00027397,7]
[334468621,1723134644533,-500.0,0.00027397,7]
[334468622,1723134644543,-500.0,0.00027397,7]
[334468623,1723134644553,-500.0,0.00027397,7]
[334468624,1723134644563,-500.0,0.00027397,7]
[334468625,1723134644572,-593.39049736,0.00027397,7]